bitfinex-derivatives/quotes_SOLF0:USTF0_20260104
["timestamp","ask_amount","ask_price","bid_price","bid_amount"]
[1767552639454,0.63479468,134.19,134.14,0.70642997]
[1767552640549,7.34469468,134.19,134.14,0.70642997]
[1767552648267,0.63479468,134.17,134.11,0.64027324]
[1767552649656,0.63479468,134.17,134.08,2.67064836]
[1767552649657,2.63479468,134.2,134.12,0.64027324]
[1767552649857,5.80937739,134.19,134.12,0.64027324]
[1767552650058,2.63479468,134.2,134.12,0.64027324]
[1767552650258,5.80945696,134.19,134.12,0.64027324]
[1767552650560,9.34419468,134.2,134.14,6.7124]
[1767552650761,5.80889103,134.19,134.14,6.7124]
[1767552650962,9.34419468,134.2,134.14,6.7124]
[1767552651658,9.34419468,134.2,134.14,7.35267324]
[1767552654872,0.63479468,134.19,134.14,0.64027324]
[1767552657472,7.34469468,134.19,134.14,0.64027324]
[1767552665181,6.7094,134.2,134.14,0.64027324]
[1767552665678,7.34390233,134.2,134.14,0.64027324]
[1767552670377,0.63450233,134.19,134.14,7.35257324]
[1767552671591,89.7673011,134.21,134.14,7.35257324]
[1767552671592,97.11070343,134.21,134.14,7.35257324]
[1767552671882,5.82484052,134.2,134.14,7.35257324]
[1767552672082,97.11070343,134.21,134.14,7.35257324]
[1767552672269,6.4593416,134.2,134.14,7.35257324]
[1767552672582,0.63450233,134.2,134.14,7.35257324]
[1767552672885,7.34410233,134.2,134.14,7.35257324]
[1767552673086,5.82508814,134.19,134.14,7.35257324]
[1767552673286,7.34410233,134.2,134.14,7.35257324]
[1767552673591,5.82548539,134.19,134.14,7.35257324]
[1767552673881,7.34410233,134.2,134.14,7.35257324]
[1767552676289,0.63450233,134.2,134.14,7.35257324]
[1767552678391,0.63450233,134.2,134.15,6.7118]
[1767552681879,89.7673011,134.21,134.16,7.34874065]
[1767552682080,1.7073011,134.21,134.16,0.63754065]
[1767552683285,1.7073011,134.21,134.16,7.34894065]
[1767552685989,8.4162011,134.21,134.14,6.712]
[1767552686192,2.34180343,134.19,134.14,7.34954065]
[1767552686393,2.34180343,134.19,134.14,6.712]
[1767552689895,0.63450233,134.18,134.12,6.7131]
[1767552690096,1.7073011,134.15,134.08,0.63754065]
[1767552691697,1.7073011,134.15,134.1,7.30929778]
[1767552693999,2.31585738,134.15,134.08,7.31049778]
[1767552694295,1.7073011,134.15,134.09,0.59073175]
[1767552695703,7.31242121,134.16,134.1,7.30493175]
[1767552695903,0.60102121,134.16,134.1,7.30493175]
[1767552696502,0.60102121,134.19,134.13,0.59073175]
[1767552698612,0.60102121,134.19,134.14,6.7123]
[1767552698809,0.60102121,134.19,134.14,7.30303175]
[1767552712323,0.60102121,134.18,134.12,7.30363175]
[1767552712523,0.60102121,134.18,134.12,0.59073175]
[1767552713522,6.7109,134.17,134.12,0.59073175]
[1767552713724,0.60102121,134.17,134.1,0.59073175]
[1767552715517,6.7119,134.15,134.1,0.59073175]
[1767552720638,0.60102121,134.16,134.1,0.59073175]
[1767552720835,6.7113,134.17,134.11,7.26865955]
[1767552721130,7.28769477,134.17,134.11,7.26865955]
[1767552721437,0.57639477,134.17,134.11,7.26865955]
[1767552722622,0.57639477,134.17,134.12,6.7132]
[1767552722826,2.0,134.18,134.12,0.55485955]
[1767552723031,0.57639477,134.21,134.13,0.55485955]
[1767552724534,7.28529477,134.21,134.15,6.7117]
[1767552727029,7.28529477,134.21,134.14,7.26715955]
[1767552729246,6.7094,134.2,134.14,7.26715955]
[1767552730637,7.28579477,134.2,134.14,7.26715955]
[1767552730842,7.28579477,134.2,134.14,0.55485955]
[1767552735443,9.28519477,134.22,134.15,0.55485955]
[1767552735836,0.57639477,134.21,134.15,0.55485955]
[1767552736235,0.57639477,134.21,134.15,7.26675955]
[1767552739744,0.57639477,134.21,134.16,0.55485955]
[1767552746351,7.28529477,134.21,134.16,0.55485955]
[1767552746647,7.28529477,134.21,134.15,7.26675955]
[1767552751949,0.56364267,134.2,134.15,7.26675955]
[1767552754342,0.05036708,134.19,134.15,7.26675955]
[1767552756253,0.05036708,134.19,134.16,6.7113]
[1767552758743,0.05036708,134.19,134.17,0.55284889]
[1767552760662,0.56500495,134.24,134.17,0.55284889]
[1767552761256,7.27280495,134.24,134.18,6.7104]
[1767552768573,7.27280495,134.24,134.2,0.05227434]
[1767552774876,0.56500495,134.24,134.2,0.05227434]
[1767552775092,0.56500495,134.26,134.2,0.60512323]
[1767552776280,0.56500495,134.26,134.2,7.31442323]
[1767552777576,7.27160495,134.26,134.2,7.31442323]
[1767552780380,0.52368318,134.23,134.2,0.05227434]
[1767552781784,7.23208318,134.23,134.2,0.05227434]
[1767552782679,0.52368318,134.23,134.2,0.05227434]
[1767552785692,0.52368318,134.21,134.16,0.5349661]
[1767552786701,7.23258318,134.21,134.16,0.5349661]
[1767552786902,0.05033901,134.2,134.16,0.5349661]
[1767552789700,0.05033901,134.2,134.16,7.2463661]
[1767552802602,0.05033901,134.2,134.17,7.2457661]
[1767552809213,0.05033901,134.2,134.17,0.5349661]
[1767552842446,0.05033901,134.2,134.17,7.2457661]
[1767552843954,0.05033901,134.2,134.17,0.5349661]
[1767552849656,0.05033901,134.2,134.15,0.54717373]
[1767552855563,0.05033901,134.2,134.15,7.25907373]
[1767552855859,0.05033901,134.2,134.16,0.54717373]
[1767552858265,0.50998495,134.19,134.09,241.29496007]
[1767552859158,0.05202924,134.15,134.09,241.29496007]
[1767552860361,0.05202924,134.15,134.1,0.02144154]
[1767552861660,0.05202924,134.15,134.11,0.02241605]
[1767552868559,6.76422924,134.15,134.11,0.02241605]
[1767552868757,6.76422924,134.15,134.11,88.08241605]
[1767552869164,7.27421419,134.15,134.11,88.06]
[1767552869664,6.7126,134.14,134.09,241.32480364]
[1767552869858,0.56201419,134.15,134.09,329.40480364]
[1767552871063,6.7129,134.13,134.1,0.03287625]
[1767552872068,6.7136,134.12,134.09,241.29496007]
[1767552872872,6.76283004,134.12,134.09,241.29496007]
[1767552873269,6.7139,134.11,134.05,6.7169]
[1767552873567,6.7139,134.11,134.07,88.08]
[1767552876475,6.7146,134.1,134.04,6.7174]
[1767552876783,6.7146,134.1,134.05,88.08]
[1767552877266,0.04805617,134.09,134.05,88.08]
[1767552878273,0.04805617,134.09,134.06,88.08]
[1767552879187,0.04805617,134.09,134.05,88.1]
[1767552880380,6.76295617,134.09,134.05,88.1]
[1767552886675,0.04805617,134.09,134.05,88.1]
[1767552894090,0.04805617,134.09,134.03,6.7178]
[1767552894293,0.04805617,134.09,134.04,88.12]
[1767552894493,0.04805617,134.09,134.04,89.82995498]
[1767552895594,0.04805617,134.09,134.04,96.54705498]
[1767552895790,0.04805617,134.09,134.06,1.70995498]
[1767552900899,0.04805617,134.09,134.06,1.73157019]
[1767552901794,6.7139,134.12,134.07,0.02161521]
[1767552902001,0.5145235,134.15,134.08,89.82995498]
[1767552902191,0.5145235,134.15,134.1,1.70995498]
[1767552902793,0.5145235,134.15,134.08,1.70995498]
[1767552902991,0.5145235,134.15,134.09,88.12]
[1767552903298,0.5145235,134.15,134.1,0.05009654]
[1767552903893,6.7133,134.13,134.1,0.05009654]
[1767552904893,6.7134,134.12,134.1,0.05009654]
[1767552906002,6.7134,134.12,134.06,8.42635498]
[1767552906192,6.7669207,134.12,134.06,8.42635498]
[1767552906596,6.7139,134.11,134.06,1.70995498]
[1767552908504,6.7139,134.11,134.05,94.8168]
[1767552908702,0.5680442,134.12,134.04,1.70995498]
[1767552908703,6.7145,134.1,134.04,1.70995498]
[1767552908902,6.7145,134.1,134.05,88.1]
[1767552909491,6.7145,134.1,134.04,1.70995498]
[1767552909697,6.7145,134.1,134.05,88.1]
[1767552909898,0.0507171,134.09,134.05,88.1]
[1767552914217,6.7656171,134.09,134.05,88.12]
[1767552919322,6.7656171,134.09,134.03,8.42745498]
[1767552919622,6.7656171,134.09,134.05,88.12]
[1767552919921,6.7656171,134.09,134.03,8.42745498]
[1767552920124,6.7656171,134.09,134.04,88.12]
[1767552920321,6.7656171,134.09,134.05,88.12]
[1767552921323,6.7656171,134.09,134.03,8.42745498]
[1767552921823,6.7656171,134.09,134.04,88.12]
[1767552939239,6.7155,134.08,134.05,88.12]
[1767552939628,0.0507171,134.09,134.03,1.70995498]
[1767552939826,0.62522697,134.09,134.03,88.12]
[1767552940030,0.57450987,134.08,133.95,36.29324803]
[1767552940235,0.0507171,134.09,134.02,1.70995498]
[1767552940438,0.57450987,134.1,134.04,1.70995498]
[1767552940830,0.04999479,134.07,134.04,1.70995498]
[1767552943635,6.76609479,134.07,133.98,1.29838634]
[1767552943834,6.76609479,134.07,134.01,1.70995498]
[1767552944037,6.7161,134.07,134.02,88.12]
[1767552944933,0.05140326,134.06,134.02,88.12]
[1767552948244,0.05140326,134.06,134.01,1.70995498]
[1767552948441,0.05140326,134.06,134.02,88.12]
[1767552950845,0.05140326,134.06,134.01,6.7189]
[1767552951143,0.05140326,134.06,134.02,88.14]
[1767552956242,0.05140326,134.06,134.02,94.8584]
[1767552961845,0.05140326,134.06,134.02,88.14]
[1767552962148,0.05140326,134.06,133.98,3.97122323]
[1767552962350,0.05140326,134.06,133.92,120.70133689]
[1767552962351,0.58795749,134.06,133.99,88.14]
[1767552962754,0.53655423,134.06,133.99,88.14]
[1767552963649,2.53655423,134.08,134.0,88.14]
[1767552963851,0.05127179,134.04,134.0,88.14]
[1767552964657,0.05127179,134.04,134.0,94.8592]
[1767552966460,0.05127179,134.04,134.01,6.7189]
[1767552969558,0.05127179,134.04,134.0,88.14]
[1767552971557,0.05127179,134.04,134.0,94.8594]
[1767552973865,0.05127179,134.04,134.01,6.7189]
[1767552974461,0.05127179,134.04,134.02,6.7184]
[1767552974661,0.01755109,134.04,134.02,6.7184]
[1767552975367,8.7158,134.08,134.02,6.7184]
[1767552975565,7.25155423,134.09,134.03,6.7178]
[1767552975777,7.25155423,134.09,134.03,94.8578]
[1767552976777,7.25155423,134.09,134.05,0.05060265]
[1767552979474,0.53655423,134.09,134.05,0.05060265]
[1767552980674,7.25095423,134.11,134.05,0.05060265]
[1767552980876,6.7144,134.1,134.05,0.05060265]
[1767552981773,7.25095423,134.1,134.05,0.05060265]
[1767552984082,7.25045423,134.11,134.05,0.05060265]
[1767552984480,0.53655423,134.11,134.05,0.05060265]
[1767552985783,0.53655423,134.11,134.06,6.7163]
[1767552993602,9.2688411,134.13,134.07,6.7158]
[1767552993896,7.2688411,134.13,134.07,6.7158]
[1767552994398,7.2688411,134.13,134.09,0.05326526]
[1767552998901,0.5559411,134.13,134.09,0.05326526]
[1767552999897,6.7124,134.14,134.09,0.05326526]
[1767553000505,9.28723207,134.16,134.09,0.05326526]
[1767553000697,7.28723207,134.16,134.09,0.05326526]
[1767553001707,7.28723207,134.16,134.09,6.76766526]
[1767553003102,7.28723207,134.16,134.1,6.7143]
[1767553004304,0.57583207,134.16,134.11,6.7138]
[1767553005105,0.57583207,134.16,134.12,0.05508192]
[1767553005808,0.57583207,134.18,134.12,6.76838192]
[1767553007314,0.57583207,134.17,134.12,0.05508192]
[1767553008212,0.57583207,134.16,134.12,0.05508192]
[1767553009809,0.57583207,134.16,134.12,6.76838192]
[1767553013220,0.57583207,134.16,134.12,0.05508192]
[1767553021815,0.54991569,134.18,134.12,0.05508192]
[1767553022019,0.54991569,134.18,134.12,1.76342663]
[1767553022220,0.54991569,134.18,134.12,89.84342663]
[1767553023629,0.54991569,134.18,134.13,6.7128]
[1767553026132,0.54991569,134.18,134.12,6.76838192]
[1767553026927,0.54991569,134.18,134.13,8.42084471]
[1767553027127,14.31259159,134.2,134.13,1.70834471]
[1767553027428,0.54991569,134.19,134.13,1.70834471]
[1767553027928,0.54991569,134.19,134.15,0.0508908]
[1767553035131,7.25981569,134.19,134.15,0.0508908]
[1767553035318,2.54991569,134.21,134.15,0.0508908]
[1767553035525,0.54991569,134.21,134.16,6.7114]
[1767553035728,7.25881569,134.21,134.15,1.75923551]
[1767553037233,0.54991569,134.2,134.15,1.75923551]
[1767553037625,0.54991569,134.19,134.15,0.0508908]
[1767553040424,0.54991569,134.18,134.11,6.7135]
[1767553040729,0.59758193,134.18,134.12,0.06023057]
[1767553041634,0.59758193,134.18,134.13,6.7129]
[1767553044431,0.54991569,134.21,134.15,1.76909872]
[1767553044737,0.54991569,134.23,134.16,0.06075401]
[1767553045530,15.430497,134.32,134.21,1.70834471]
[1767553045727,93.8384769,134.31,134.22,1.70834471]
[1767553046030,5.7784769,134.3,134.22,1.70834471]
[1767553046430,7.48682161,134.3,134.22,1.70834471]
[1767553046631,6.7055,134.28,134.22,1.70834471]
[1767553047340,6.7055,134.28,134.24,0.04852345]
[1767553047733,0.54991569,134.27,134.24,0.04852345]
[1767553050743,0.54991569,134.27,134.22,6.7084]
[1767553052044,0.56725084,134.26,134.2,6.7091]
[1767553052244,0.56725084,134.25,134.18,0.54371865]
[1767553052635,0.61529132,134.24,134.18,0.54371865]
[1767553053552,0.61529132,134.24,134.18,7.25361865]
[1767553056951,0.58110604,134.26,134.2,0.57227987]
[1767553058245,10.99515075,134.28,134.22,0.04933246]
[1767553058553,0.58110604,134.27,134.22,0.04933246]
[1767553063950,0.58110604,134.26,134.22,0.04933246]
[1767553065653,0.58110604,134.25,134.22,0.04933246]
[1767553078271,0.58110604,134.25,134.19,7.28207987]
[1767553078470,0.62994356,134.25,134.19,7.28207987]
[1767553079567,0.58110604,134.24,134.19,7.28207987]
[1767553079768,0.58110604,134.24,134.18,6.7103]
[1767553080564,0.05106203,134.22,134.18,6.7103]
[1767553081674,0.05106203,134.22,134.19,7.27948168]
[1767553086175,0.05106203,134.22,134.2,6.7094]
[1767553089172,0.05106203,134.22,134.21,6.7089]
[1767553089472,0.57130452,134.26,134.2,0.56968168]
[1767553090064,0.57130452,134.26,134.22,6.7082]
[1767553090267,0.57130452,134.28,134.21,0.56968168]
[1767553090575,5.80719273,134.27,134.21,0.56968168]
[1767553090775,0.57130452,134.28,134.23,6.75811976]
[1767553090975,5.807502,134.27,134.23,6.75811976]
[1767553091172,0.57130452,134.3,134.25,6.7066]
[1767553091479,5.80750397,134.29,134.25,6.7066]
[1767553091781,0.57130452,134.3,134.25,6.7066]
[1767553091980,5.80786497,134.29,134.26,0.05419731]
[1767553092175,0.57130452,134.29,134.23,6.7074]
[1767553092372,0.62806345,134.29,134.23,6.7074]
[1767553094176,0.62806345,134.29,134.21,6.7085]
[1767553094177,0.57130452,134.27,134.21,6.7085]
[1767553094986,0.04862739,134.25,134.21,7.27818168]
[1767553096874,0.04862739,134.25,134.21,6.7085]
[1767553097186,0.61993191,134.25,134.21,6.7085]
[1767553097384,0.61993191,134.25,134.2,0.56968168]
[1767553098284,0.04862739,134.25,134.2,7.27908168]
[1767553103288,0.04862739,134.25,134.21,7.27848168]
[1767553109700,0.04862739,134.25,134.21,0.56968168]
[1767553118314,0.04862739,134.25,134.21,7.27818168]
[1767553126737,88.59845283,134.3,134.22,0.65596011]
[1767553126928,5.79804073,134.29,134.22,0.65596011]
[1767553127123,5.79804073,134.28,134.22,0.65596011]
[1767553127330,95.30325283,134.3,134.23,0.60771885]
[1767553127520,5.79765029,134.29,134.23,0.60771885]
[1767553127728,5.79765029,134.28,134.23,0.60771885]
[1767553127927,7.28325283,134.3,134.23,0.60771885]
[1767553128124,5.79764794,134.29,134.23,0.60771885]
[1767553128326,5.79764794,134.28,134.25,0.60771885]
[1767553128526,6.7039,134.31,134.25,0.65525313]
[1767553128726,5.79759013,134.3,134.25,0.65525313]
[1767553129036,5.79759013,134.29,134.25,0.65525313]
[1767553129223,7.28235283,134.31,134.25,0.65525313]
[1767553129423,5.79632122,134.3,134.26,0.60771885]
[1767553129631,0.57845283,134.31,134.26,0.60771885]
[1767553129831,5.79634564,134.3,134.26,0.60771885]
[1767553130026,0.57845283,134.31,134.26,0.60771885]
[1767553130235,5.79634564,134.3,134.26,0.60771885]
[1767553130525,0.57845283,134.31,134.26,0.60771885]
[1767553130830,94.7235,134.32,134.26,0.60771885]
[1767553130831,5.7951435,134.3,134.26,0.60771885]
[1767553131031,95.30195283,134.32,134.26,0.60771885]
[1767553131224,5.79514819,134.31,134.26,0.60771885]
[1767553131423,5.79514819,134.3,134.26,0.60771885]
[1767553131621,95.30195283,134.32,134.26,0.60771885]
[1767553131827,5.79409027,134.31,134.26,0.60771885]
[1767553132032,5.79409027,134.3,134.26,0.60771885]
[1767553132232,95.30195283,134.32,134.26,0.60771885]
[1767553132432,5.79317369,134.31,134.26,0.60771885]
[1767553132733,5.79317369,134.3,134.26,0.60771885]
[1767553132928,7.28135283,134.34,134.27,0.60771885]
[1767553133133,0.57845283,134.32,134.25,0.65525313]
[1767553133335,0.57845283,134.32,134.25,0.60771885]
[1767553134635,6.7039,134.31,134.25,7.31411885]
[1767553135238,6.7039,134.31,134.27,0.0477857]
[1767553135739,90.68578117,134.34,134.25,0.60771885]
[1767553135740,7.33437227,134.3,134.25,0.60771885]
[1767553136234,6.7049,134.29,134.23,7.31551885]
[1767553136741,6.7049,134.29,134.24,0.60771885]
[1767553137140,0.05015725,134.27,134.24,0.60771885]
[1767553138831,0.05015725,134.27,134.22,0.60771885]
[1767553139237,0.05015725,134.27,134.22,7.31601885]
[1767553140539,0.05015725,134.27,134.22,0.60771885]
[1767553141631,0.63269559,134.26,134.2,0.63393921]
[1767553141947,2.33818368,134.26,134.2,0.63393921]
[1767553142541,0.04743087,134.24,134.2,0.63393921]
[1767553143443,0.04743087,134.24,134.2,7.34333921]
[1767553148640,0.68012646,134.24,134.18,0.63393921]
[1767553149243,2.38561455,134.24,134.18,0.63393921]
[1767553149646,0.63269559,134.23,134.18,0.63393921]
[1767553153849,7.34069559,134.23,134.18,0.63393921]
[1767553161547,7.34069559,134.23,134.16,6.7114]
[1767553161548,0.63269559,134.22,134.16,7.34533921]
[1767553161953,7.34159559,134.21,134.16,0.63393921]
[1767553162344,0.05500084,134.2,134.16,0.63393921]
[1767553167961,0.05500084,134.2,134.16,7.34523921]
[1767553168357,0.05500084,134.2,134.17,0.63393921]
[1767553179055,0.65021573,134.2,134.16,6.7113]
[1767553179965,0.05500084,134.2,134.16,7.35334931]
[1767553180358,0.05500084,134.2,134.17,0.64204931]
[1767553201874,0.6926241,134.2,134.15,0.60202939]
[1767553202074,5.78711876,134.19,134.15,0.60202939]
[1767553202274,0.63762326,134.2,134.15,0.60202939]
[1767553202476,12.4958684,134.19,134.15,0.60202939]
[1767553202670,0.05116644,134.18,134.15,0.60202939]
[1767553202867,0.05116644,134.18,134.13,7.31482939]
[1767553203174,0.05116644,134.18,134.08,110.42]
[1767553203175,0.6887897,134.18,134.11,7.31542939]
[1767553203373,0.6887897,134.18,134.11,0.60202939]
[1767553203880,7.34852326,134.17,134.11,0.60202939]
[1767553204076,0.05542001,134.16,134.11,0.60202939]
[1767553205978,6.76682001,134.16,134.11,0.60202939]
[1767553208473,6.76682001,134.16,134.09,0.60202939]
[1767553208474,0.63762326,134.15,134.09,0.60202939]
[1767553209272,7.34982326,134.15,134.09,0.60202939]
[1767553211186,7.35012326,134.14,134.09,0.60202939]
[1767553211389,0.63762326,134.14,134.09,0.60202939]
[1767553211582,0.63762326,134.12,134.06,0.60202939]
[1767553212387,0.05550945,134.13,134.06,0.60202939]
[1767553212588,0.05550945,134.13,134.07,0.60202939]
[1767553219393,0.05550945,134.13,134.08,0.60202939]
[1767553229706,6.7119,134.16,134.09,0.65485093]
[1767553229904,90.73762326,134.18,134.09,0.65485093]
[1767553230215,0.63762326,134.18,134.09,0.65485093]
[1767553230403,0.63762326,134.18,134.09,0.60202939]
[1767553231101,0.63762326,134.18,134.12,0.65807817]
[1767553231605,7.34842326,134.18,134.12,0.65807817]
[1767553233901,0.60030324,134.2,134.13,0.60762197]
[1767553234106,0.60030324,134.18,134.12,0.05002979]
[1767553234308,0.60030324,134.16,134.11,0.60762197]
[1767553235298,0.60030324,134.16,134.07,0.60762197]
[1767553235499,0.60030324,134.15,134.09,0.60762197]
[1767553236199,0.04754964,134.13,134.09,0.60762197]
[1767553236807,0.64785288,134.13,134.08,6.7154]
[1767553237005,0.04754964,134.13,134.08,7.32302197]
[1767553237609,0.04754964,134.13,134.09,0.60762197]
[1767553241409,0.04754964,134.13,134.1,0.60762197]
[1767553241605,0.04754964,134.13,134.09,6.7147]
[1767553241908,0.64785288,134.13,134.09,6.7147]
[1767553242403,0.04754964,134.13,134.09,7.32232197]
[1767553247593,0.04754964,134.13,134.11,0.60762197]
[1767553248209,0.60030324,134.17,134.11,7.32142197]
[1767553249006,0.60030324,134.17,134.12,0.60762197]
[1767553249601,7.31120324,134.17,134.13,0.04836757]
[1767553249904,2.0,134.18,134.13,0.04836757]
[1767553250201,2.0,134.18,134.13,0.65598954]
[1767553250803,0.60030324,134.19,134.13,0.65598954]
[1767553251509,6.7094,134.2,134.14,0.60762197]
[1767553252310,6.38800903,134.19,134.13,0.04836757]
[1767553252507,0.60030324,134.19,134.13,0.04836757]
[1767553252910,6.7105,134.18,134.13,0.04836757]
[1767553255716,7.31080324,134.18,134.13,0.04836757]
[1767553255918,6.7109,134.17,134.13,0.04836757]
[1767553259815,0.60030324,134.16,134.13,0.04836757]
[1767553260033,7.31170324,134.16,134.09,0.60762197]
[1767553260227,7.3616954,134.16,134.09,0.60762197]
[1767553260822,0.6502954,134.16,134.1,6.7143]
[1767553263527,0.6502954,134.16,134.1,7.33397122]
[1767553265634,0.6502954,134.16,134.11,7.33327122]
[1767553266234,0.04999216,134.16,134.11,7.33327122]
[1767553267238,0.04999216,134.16,134.13,0.61967122]
[1767553267424,2.34603064,134.2,134.13,0.61967122]
[1767553267736,2.34603064,134.2,134.12,0.67052949]
[1767553267737,0.63744172,134.18,134.12,0.67052949]
[1767553267926,0.63744172,134.18,134.12,0.61967122]
[1767553268739,0.63744172,134.18,134.14,0.05249141]
[1767553268938,0.63744172,134.17,134.12,0.61967122]
[1767553269237,0.04999999,134.16,134.09,0.61967122]
[1767553270538,0.04999999,134.16,134.1,6.7141]
[1767553270733,0.04999999,134.16,134.1,7.33377122]
[1767553271339,0.68744171,134.16,134.1,0.61967122]
[1767553272238,7.39884171,134.16,134.1,0.61967122]
[1767553273544,6.7119,134.15,134.1,0.61967122]
[1767553273739,7.34934172,134.15,134.09,6.7149]
[1767553276448,7.34934172,134.15,134.09,7.33457122]
[1767553279542,6.7124,134.14,134.09,0.61967122]
[1767553280350,0.05197099,134.13,134.09,0.61967122]
[1767553283546,0.68941271,134.13,134.08,6.7149]
[1767553283747,0.68941271,134.13,134.07,0.61967122]
[1767553284345,7.35084172,134.12,134.06,6.7164]
[1767553285549,7.35084172,134.12,134.06,7.33607122]
[1767553286647,6.7141,134.11,134.05,6.7169]
[1767553286852,0.63744172,134.1,134.03,0.61967122]
[1767553287441,0.05473781,134.08,134.03,0.61967122]
[1767553287644,0.05473781,134.08,134.04,6.7174]
[1767553288147,0.05473781,134.08,134.03,0.61967122]
[1767553290049,0.63744172,134.07,134.02,6.7182]
[1767553290259,0.63744172,134.07,134.01,9.04716014]
[1767553290452,0.63744172,134.07,134.01,7.33857122]
[1767553292259,0.63744172,134.07,134.01,9.04716014]
[1767553294555,7.35334172,134.07,134.01,0.61967122]
[1767553295053,0.05473781,134.08,134.02,0.59458663]
[1767553295260,0.05473781,134.08,134.03,1.70858892]
[1767553295461,0.05473781,134.08,134.04,0.59458663]
[1767553296662,0.05473781,134.08,134.04,7.31198663]
[1767553299659,0.65751794,134.08,134.04,6.7174]
[1767553299967,2.36610686,134.08,134.02,0.59458663]
[1767553300154,0.65751794,134.08,134.02,0.59458663]
[1767553300564,7.37291794,134.08,134.02,0.59458663]
[1767553305163,0.60278013,134.07,134.0,0.59458663]
[1767553305555,0.60278013,134.07,133.98,0.59458663]
[1767553305762,0.60278013,134.07,133.99,0.59458663]
[1767553306469,0.60278013,134.07,134.0,0.59458663]
[1767553307565,7.31868013,134.07,134.0,7.31398663]
[1767553308364,0.60278013,134.05,133.98,9.02317555]
[1767553308558,0.60278013,134.05,133.98,7.31458663]
[1767553309565,7.31968013,134.05,133.98,7.31458663]
[1767553311774,7.32028013,134.04,133.98,0.59458663]
[1767553312670,7.32068013,134.03,133.96,2.30317555]
[1767553313270,7.32128013,134.02,133.96,0.59458663]
[1767553313470,0.60278013,134.01,133.94,88.73458663]
[1767553313885,0.60278013,134.0,133.91,25.5866421]
[1767553314065,0.60278013,134.0,133.93,0.59458663]
[1767553314264,0.05404596,133.99,133.93,0.59458663]
[1767553315473,6.77394596,133.99,133.93,0.59458663]
[1767553316770,7.37672609,133.99,133.93,0.59458663]
[1767553318173,0.65682609,133.99,133.93,7.31728663]
[1767553319474,0.05404596,133.99,133.94,0.59458663]
[1767553321574,0.05404596,133.99,133.95,0.63160109]
[1767553321774,104.4806,134.06,133.95,0.68140508]
[1767553321775,0.58965313,134.04,133.95,0.68140508]
[1767553322181,0.58965313,134.01,133.96,6.7209]
[1767553322781,0.58965313,134.01,133.95,0.63160109]
[1767553322979,0.58965313,134.0,133.91,113.17205547]
[1767553323194,0.58965313,134.0,133.97,0.0528853]
[1767553323379,0.58965313,134.0,133.92,0.62105684]
[1767553323782,0.58965313,134.0,133.97,0.04920754]
[1767553324278,7.30905313,134.0,133.97,0.04920754]
[1767553324870,6.7189,134.02,133.97,0.04920754]
[1767553328690,7.30855313,134.02,133.97,0.04920754]
[1767553330684,2.58965313,134.04,133.97,0.668412]
[1767553330880,0.58965313,134.04,133.97,0.668412]
[1767553332584,6.7179,134.03,133.97,7.389312]
[1767553333596,0.58965313,134.04,133.98,7.33875507]
[1767553334293,90.76965313,134.06,133.99,0.61821834]
[1767553334492,88.76965313,134.06,134.0,0.61821834]
[1767553335189,95.48645313,134.06,134.02,0.04953335]
[1767553336391,0.58965313,134.05,133.96,3.30793014]
[1767553336592,0.63843501,134.05,133.96,0.63160109]
[1767553337084,0.58965313,134.05,133.96,0.63160109]
[1767553337491,6.7179,134.03,133.97,7.35240109]
[1767553338498,0.04932567,134.01,133.97,7.35240109]
[1767553338700,0.04932567,134.01,133.97,0.63160109]
[1767553342606,0.04932567,134.01,133.97,7.35250109]
[1767553342917,0.58965313,134.06,133.98,0.68329602]
[1767553344012,0.58965313,134.06,134.0,0.63160109]
[1767553344320,104.4417,134.11,134.0,0.63160109]
[1767553344321,0.58965313,134.08,134.0,0.63160109]
[1767553345019,0.58965313,134.08,134.0,7.35080109]
[1767553345318,0.58965313,134.08,134.0,0.63160109]
[1767553345518,0.58965313,134.08,134.03,0.04976363]
[1767553346617,6.716,134.07,134.03,0.04976363]
[1767553349225,0.58965313,134.08,134.03,0.04976363]
[1767553349412,6.7153,134.09,134.03,0.68136472]
[1767553349718,0.58965313,134.09,134.03,0.68136472]
[1767553349923,0.58965313,134.09,134.03,7.39926472]
[1767553351021,0.58965313,134.09,134.04,0.59284415]
[1767553352726,7.30465313,134.09,134.04,0.59284415]
[1767553353918,0.61851569,134.07,134.03,0.04976363]
[1767553355514,7.33441569,134.07,134.03,0.04976363]
[1767553359327,0.60628984,134.06,134.03,0.04976363]
[1767553383240,0.62660163,134.08,134.03,0.04976363]
[1767553384545,0.62660163,134.08,134.04,6.7173]
[1767553384843,0.62660163,134.08,134.03,0.04976363]
[1767553385545,0.62660163,134.08,134.03,6.76766363]
[1767553385947,0.62660163,134.06,134.03,0.04976363]
[1767553388944,0.62660163,134.05,133.99,6.7195]
[1767553389742,0.62660163,134.04,133.96,2.34554792]
[1767553389941,0.62660163,134.03,133.96,2.34554792]